[Event "Oceania Zonal Open 2023"]
[Site "Melbourne"]
[Date "2023.01.26"]
[Round "6.8"]
[White "Winkelman, Albert"]
[Black "Li, Jackie"]
[Result "1-0"]
[ECO "A06"]
[WhiteElo "2272"]
[BlackElo "2035"]
[Annotator "TA"]
[PlyCount "91"]
[EventDate "2023.01.09"]
[EventType "swiss"]
[EventCountry "AUS"]
[SourceTitle "playchess.com"]
[Source "ChessBase"]
[SourceQuality "1"]
[TimeControl "5400+30"]

{[%evp 9,91,8,36,45,42,37,72,70,66,50,61,57,94,62,66,27,74,4,69,0,17,16,37,17,38,15,24,10,23,30,17,13,14,24,24,16,91,-7,-2,-101,0,0,0,0,0,0,110,102,113,0,0,0,0,0,0,-412,0,0,0,0,0,0,0,0,0,0,0,0,0,0,35,36,37,22,129,52,56,56,294,51,86,32,210,-1814]} 1. Nf3 {[%emt 0:00:24]} d5 {[%emt 0:00:10]} 2. b3 {[%emt 0:00:06]} Nf6 {[%emt 0:00:42]} 3. Bb2 {[%emt 0:00:07]} Bf5 {[%emt 0:00:42]} 4. Nh4 {[%emt 0:00:39]} Bd7 {[%emt 0:00:59]} 5. g3 {[%emt 0:00:09] [#]} c6 $146 {[%emt 0:03:54]} ({Predecessor:} 5... Qc8 6. c4 dxc4 7. bxc4 Bc6 8. Nf3 Bxf3 9. exf3 Nc6 10. d4 e5 11. d5 Nd4 {1-0 Hakobyan,A (2602)-Andreikin,D (2724) Titled Tuesday intern op 01st Feb-B blitz 2022 (9)}) 6. Bg2 {[%emt 0:00:12] A06: Réti Opening: 1 Nf3 d5.} g6 {[%emt 0:00:21]} 7. c4 {[%emt 0:01:05]} dxc4 {[%emt 0:01:39]} 8. bxc4 {[%emt 0:00:11] White is better.} Bg7 {[%emt 0:01:58]} 9. O-O {[%emt 0:04:09]} O-O {[%emt 0:02:52]} 10. d4 {[%emt 0:03:16]} Qc8 {[%emt 0:02:06]} 11. Qb3 {[%emt 0:03:09]} Na6 {[%emt 0:06:51]} 12. Bc3 {[%emt 0:06:48] White is more active.} Rb8 {[%emt 0:01:09]} (12... b5 $11) 13. Re1 {[%emt 0:02:48]} (13. a4 $16) 13... Bh3 {[%emt 0:08:59]} (13... b5 $11) 14. Bh1 {[%emt 0:00:11]} (14. Nd2 $14) 14... Nd7 {[%emt 0:03:17]} 15. Nd2 {[%emt 0:04:05]} e5 {[%emt 0:05:20]} 16. e3 {[%emt 0:00:17]} b5 {[%emt 0:09:03]} 17. Nhf3 {[%emt 0:19:41]} Be6 {[%emt 0:07:50]} 18. Nxe5 {[%emt 0:00:38]} Nxe5 {[%emt 0:00:42]} 19. dxe5 {[%emt 0:00:10]} Nc5 {[%emt 0:03:18]} 20. Qc2 {[%emt 0:01:41] Strongly threatening Bb4.} bxc4 {[%emt 0:01:05]} 21. Reb1 {[%emt 0:00:43]} Nd3 {[%emt 0:08:33] Inhibits Bb4.} 22. f4 {[%emt 0:00:18]} Bf5 {[%emt 0:10:10]} (22... Qa6 $11) 23. e4 {[%emt 0:00:48]} (23. Nxc4 Rxb1+ 24. Rxb1 Nxf4 $17) (23. Rxb8 $16 Qxb8 24. Qa4 (24. Nxc4 Nxf4 25. e4 Nh3+ 26. Kg2 Bg4 $17) (24. Bxc6 $2 Qb6 $19)) 23... Be6 $11 {[%emt 0:00:09]} 24. Qa4 {[%emt 0:00:56]} (24. Bg2 $11) 24... Rd8 {[%emt 0:06:41]} (24... Qd7 $17 {[%cal Od3f4] And now ...Nxf4! would win.} 25. Bg2 (25. Nxc4 $2 Nc5 $17) 25... Rb5) 25. Rxb8 $1 {[%emt 0:34:34]} (25. Qxa7 $2 Ra8 26. Qb7 Qxb7 27. Rxb7 Nc5 $19) (25. Nxc4 Rb5 26. Ne3 Bf8 $19) 25... Qxb8 {[%emt 0:00:06]} 26. Rb1 {[%emt 0:00:06] Prevents Qb6+.} (26. Nxc4 $2 {loses.} Bxc4 27. h3 (27. Qxc4 $2 Qb6+ 28. Kg2 Qf2+ 29. Kh3 Qe2 $19) 27... Qb6+ 28. Kh2 Qf2+ 29. Bg2 Nxf4 30. gxf4 Bb5 $19) (26. Qxc6 $2 Nb4 27. Qc5 Bf8 $19) 26... Qc8 {[%emt 0:03:51]} 27. Nxc4 {[%emt 0:03:51]} Bxc4 {[%emt 0:02:15]} (27... g5 $1 $11) 28. Qxc4 $16 {[%emt 0:01:13]} Qg4 {[%emt 0:01:51] Against Bf3. White must now prevent ...Qe2.} 29. Kf1 {[%emt 0:05:38] Prevents Qe2+.} (29. Qxc6 $2 {is the wrong capture.} Nxf4 30. Bg2 Ne2+ 31. Kf2 Rc8 $19) (29. Rf1 $16) 29... Nxf4 $11 {[%emt 0:04:22]} 30. gxf4 {[%emt 0:00:17]} Qxf4+ {[%emt 0:00:28]} 31. Kg1 {[%emt 0:02:25] Threatens to win with Qc5.} Qe3+ {[%emt 0:00:36]} 32. Kg2 $2 {[%emt 0:01:05][%mdl 8192]} (32. Kf1 $1 $11 {and White is okay.}) 32... Qg5+ $2 {[%emt 0:00:25]} ({Black should play} 32... Rd3 $19 33. Be1 (33. Rb8+ $2 Bf8 $19) 33... Qe2+ 34. Kg1 Rg3+ {[%mdl 64] Discovered Attack} 35. hxg3 Qxc4 36. Rb8+ Bf8) 33. Kf2 {[%emt 0:00:28]} Qf4+ {[%emt 0:01:18]} 34. Bf3 {[%emt 0:00:09]} Qxh2+ {[%emt 0:00:23]} 35. Kf1 {[%emt 0:00:45]} Qf4 {[%emt 0:01:49]} 36. Qe2 {[%emt 0:00:49]} Bxe5 {[%emt 0:01:14]} 37. Bxe5 {[%emt 0:00:08]} Qxe5 {[%emt 0:00:05]} 38. Bg2 {[%emt 0:03:00]} Qf4+ {[%emt 0:00:27]} 39. Qf3 {[%emt 0:00:11]} Qxf3+ {[%emt 0:00:35]} 40. Bxf3 {[%emt 0:00:07][%mdl 4096] Endgame KRB-KR} Rd2 {[%emt 0:00:44]} 41. a4 {[%emt 0:01:06] Threatening e5.} Ra2 {[%emt 0:00:04]} (41... Rd4 $11 {remains equal.}) 42. Rb4 {[%emt 0:00:05]} (42. Bd1 $1 $16) 42... h5 {[%emt 0:00:31]} 43. e5 {[%emt 0:00:33]} c5 $2 {[%emt 0:01:23] [#]} (43... Ra1+ $14 44. Ke2 Ra2+ 45. Kd1 Ra1+ 46. Kc2 Ra2+ 47. Kb3 Ra1) 44. Rc4 $2 {[%emt 0:01:35]} ({White has to play} 44. Rb8+ $1 $18 Kg7 45. Rb7 Ra1+ 46. Ke2 Ra2+ 47. Kf1) 44... Kf8 {[%emt 0:00:39]} 45. Rf4 {[%emt 0:01:14]} ({Better is} 45. Bc6 $16) 45... g5 $2 {[%emt 0:00:58] [#]} (45... Ra1+ $14 46. Ke2 Ra2+ 47. Kd3 Ra3+ 48. Kc2 Re3) 46. Ke1 $4 {[%emt 0:00:31][%mdl 40960] Weighted Error Value: White=0.48/Black=0.49. Sensor Board Error (Ke4/e5)?} 1-0

[Event "Oceania Zonal Open 2023"]
[Site "Melbourne"]
[Date "2023.01.26"]
[Round "6.9"]
[White "Rodgers, Jack"]
[Black "Cannon, David"]
[Result "1-0"]
[ECO "A45"]
[WhiteElo "2034"]
[BlackElo "2112"]
[Annotator "TA"]
[PlyCount "157"]
[EventDate "2023.01.09"]
[EventType "swiss"]
[EventCountry "AUS"]
[SourceTitle "playchess.com"]
[Source "ChessBase"]
[SourceQuality "1"]
[TimeControl "5400+30"]

{[%evp 15,157,20,21,24,27,18,19,16,18,17,31,0,10,0,7,2,6,11,3,4,20,0,0,-75,-59,-68,-54,-55,-53,-63,-59,-82,-67,-115,-34,-34,-34,-34,-34,-151,-16,-29,-29,-23,-16,-16,-16,-16,-16,-16,-16,-16,0,-16,-16,-16,-16,-16,-16,-16,-9,-16,0,-16,-16,-16,-16,-23,-20,-135,-16,-16,-16,-16,-16,-16,0,-16,0,0,0,-13,-13,-13,25,7,14,-32,-32,-156,-108,-120,-97,-360,0,0,0,0,7,7,7,7,7,0,0,0,0,0,0,0,0,0,0,0,0,0,0,0,0,0,38,0,0,0,0,0,0,0,386,386,375,375,354,313,1620,1008,4829,3271,29981,29982,29981,29981,29984,29985]} 1. d4 {[%emt 0:00:03]} Nf6 {[%emt 0:00:12]} 2. Bg5 {[%emt 0:00:06]} g6 {[%emt 0:00:20]} 3. Bxf6 {[%emt 0:00:16]} exf6 {[%emt 0:00:03]} 4. e3 {[%emt 0:00:20]} Bg7 {[%emt 0:00:07]} 5. g3 {[%emt 0:00:29]} O-O {[%emt 0:00:08]} 6. Bg2 {[%emt 0:00:14]} d6 {[%emt 0:00:16]} 7. Ne2 {[%emt 0:00:28]} f5 {[%emt 0:00:08]} 8. O-O {[%emt 0:01:54]} Nd7 {[%emt 0:00:16][%cal Bb8d7,Bd7f6,Bf6g4][%mdl 32]} 9. c4 {[%emt 0:02:56] A45: Trompowsky Attack.} a5 {[%emt 0:00:16] [#]} 10. Nd2 $146 {[%emt 0:01:06]} ({Predecessor:} 10. Nbc3 c6 11. Qc2 Nf6 12. Rfd1 Qe7 13. Nf4 g5 14. Nd3 Rb8 15. c5 dxc5 16. Nxc5 f4 {1-0 Voitovich,V (2321)-Lornye,P (2214) Lvov Maksym Yusupov Memorial 3rd rapid 2015 (2)}) 10... Nf6 {[%emt 0:02:13]} 11. a3 {[%emt 0:00:50] The position is equal.} h5 {[%emt 0:01:33]} 12. h4 {[%emt 0:01:52]} Re8 {[%emt 0:01:47]} 13. Nc3 {[%emt 0:01:01]} Ng4 {[%emt 0:02:21]} 14. Nf3 {[%emt 0:04:36]} c6 {[%emt 0:02:22]} 15. Qd3 {[%emt 0:01:53]} Bh6 {[%emt 0:04:05]} (15... b6 {looks sharper.} 16. Ng5 Bb7 17. Rfe1 Bh6) 16. Rfe1 {[%emt 0:06:06]} Bd7 {[%emt 0:02:40]} 17. Rad1 {[%emt 0:03:50]} Qc7 {[%emt 0:18:06]} 18. Nh2 {[%emt 0:04:47]} (18. Ng5 {is interesting.} Rab8 19. Rb1 Re7 20. Re2) 18... Nf6 {[%emt 0:02:19]} 19. f4 {[%emt 0:04:35]} (19. Nf1 $11) 19... Re7 {[%emt 0:01:51]} 20. b4 {[%emt 0:08:13]} Rae8 {[%emt 0:02:07]} 21. Rb1 {[%emt 0:03:36]} axb4 {[%emt 0:03:40]} 22. axb4 {[%emt 0:00:32]} Bg7 {[%emt 0:00:19]} 23. b5 {[%emt 0:03:36]} c5 {[%emt 0:06:24] Hoping for ...cxd4.} 24. d5 {[%emt 0:06:11]} (24. b6 $15 Qb8 25. dxc5) 24... Qb6 {[%emt 0:07:54]} (24... Qa5 $17 25. Rb3 Ra8) 25. Ra1 $1 $15 {[%emt 0:04:19]} Ng4 {[%emt 0:16:44]} 26. Nxg4 {[%emt 0:02:27]} hxg4 {[%emt 0:00:12]} 27. Kf1 {[%emt 0:01:05]} (27. Kf2 $15) 27... Rb8 {[%emt 0:02:53]} (27... Bxb5 $1 $17 {aiming for ...Ba6.} 28. cxb5 c4) 28. Ra2 {[%emt 0:03:42]} Qd8 {[%emt 0:01:42]} 29. Ree2 {[%emt 0:02:14]} Kh7 {[%emt 0:03:48]} 30. Nd1 $1 {[%emt 0:01:26]} Re8 {[%emt 0:08:29]} 31. Ra3 {[%emt 0:01:22]} Qe7 {[%emt 0:01:21]} 32. Nf2 {[%emt 0:01:18]} Ra8 {[%emt 0:02:57]} 33. Rea2 {[%emt 0:01:07]} Rab8 {[%emt 0:03:20]} 34. Nd1 {[%emt 0:01:39]} Bf6 {[%emt 0:00:20]} 35. Qd2 {[%emt 0:00:59]} Kg7 {[%emt 0:01:15]} 36. Qe1 {[%emt 0:02:09]} Qf8 {[%emt 0:01:23]} 37. Nf2 {[%emt 0:00:35]} Ra8 {[%emt 0:01:04]} 38. Qb1 {[%emt 0:01:08]} Rab8 {[%emt 0:00:54]} 39. Qb3 {[%emt 0:03:45]} Qe7 {[%emt 0:00:27]} 40. Re2 {[%emt 0:00:31]} Ra8 {[%emt 0:00:32]} 41. Qa2 {[%emt 0:02:09]} Qf8 {[%emt 0:01:08]} 42. Ra7 {[%emt 0:01:47] [#]} (42. Nd1 $1 $11 {keeps the balance.}) 42... Rab8 {[%emt 0:00:56]} (42... Rxa7 $1 $17 43. Qxa7 Bc8) 43. Qa3 $11 {[%emt 0:03:02]} Qe7 {[%emt 0:00:10]} 44. Nd1 {[%emt 0:00:35]} Kh6 {[%emt 0:00:20]} 45. Ra2 {[%emt 0:01:16]} Bd4 {[%emt 0:01:05][%mdl 64] Back Rank} 46. Kf2 {[%emt 0:01:26]} Bg7 {[%emt 0:00:27]} (46... Kh7 $5) 47. Qa5 {[%emt 0:00:27]} Bc8 {[%emt 0:00:09]} 48. Ra8 {[%emt 0:00:41]} Rxa8 {[%emt 0:00:05]} 49. Qxa8 {[%emt 0:00:04]} f6 {[%emt 0:00:42]} 50. Qa5 {[%emt 0:03:04]} g5 {[%emt 0:00:07]} 51. hxg5+ {[%emt 0:01:16]} (51. Qe1 $11 {was preferrable.}) 51... fxg5 $15 {[%emt 0:00:01]} 52. fxg5+ {[%emt 0:00:32]} ({White should try} 52. Qd2 $15) 52... Kxg5 {[%emt 0:00:35]} (52... Qxg5 $142 {And now ...Be5 would win.} 53. Kf1 Be5) 53. Qd2 {[%emt 0:01:08] [#]} Be5 $1 {[%emt 0:01:19] White must now prevent ...Qh7.} 54. Nc3 $2 {[%emt 0:00:37][%mdl 8192]} (54. Qe1 $17) 54... Kg6 $2 {[%emt 0:00:25]} ({Black should play} 54... Bxg3+ $1 $19 55. Kxg3 Qxe3+ 56. Qxe3+ Rxe3+ 57. Kf2 Rxc3) 55. Ne2 $11 {[%emt 0:00:19]} Rh8 {[%emt 0:01:05]} 56. Ra8 {[%emt 0:00:49]} Bd7 {[%emt 0:00:31]} 57. Rxh8 {[%emt 0:00:46]} Bxh8 {[%emt 0:00:01]} 58. Qa5 {[%emt 0:00:25] Qc7 would be deadly.} Bc8 {[%emt 0:01:05]} 59. Qa8 {[%emt 0:00:05]} Qd8 {[%emt 0:00:29]} 60. Nf4+ {[%emt 0:00:07]} Kf7 {[%emt 0:00:12]} 61. Bf1 {[%emt 0:00:40]} Be5 {[%emt 0:00:15]} 62. Nd3 {[%emt 0:02:13]} Bf6 {[%emt 0:00:22]} 63. Bg2 {[%emt 0:00:36]} Qe8 {[%emt 0:01:07]} 64. Qb8 {[%emt 0:00:29]} Qd8 {[%emt 0:00:12]} 65. Nf4 {[%emt 0:00:39]} Be5 {[%emt 0:00:48]} 66. Ne6 {[%emt 0:00:54]} Qh8 {[%emt 0:00:26]} (66... Qd7 67. Nxc5 Qe8 68. Ne6 $16 (68. Nxb7 Bxg3+ {[%mdl 64] Decoy} 69. Kxg3 Qxe3+ 70. Kh2 Qf4+ 71. Kg1 Qe3+ 72. Kh2 Qf4+ 73. Kh1 Qc1+ 74. Kh2 Qf4+ $11)) 67. Qc7+ {[%emt 0:00:21]} Kf6 {[%emt 0:00:06]} 68. Nd8 {[%emt 0:00:58]} (68. Nf4 $5 {[%cal Rf4d3]}) 68... Qh2 {[%emt 0:01:02]} 69. Qxc8 {[%emt 0:00:10]} Qxg3+ {[%emt 0:00:06]} 70. Kf1 {[%emt 0:00:06] Qe6+ would kill now.} Qxe3 {[%emt 0:00:03]} 71. Qe6+ {[%emt 0:00:22]} (71. Nxb7 Qc1+ 72. Kf2 Bd4+ 73. Ke2 Qc2+ 74. Ke1 Bc3+ 75. Kf1 Qd1+ 76. Kf2 Qe1#) 71... Kg5 $2 {[%emt 0:00:27][%mdl 8192]} (71... Kg7 $1 $11 72. Qf7+ (72. Nxb7 {is a self mate.} Qd3+ 73. Kg1 Qd4+ 74. Kf1 Qd1+ 75. Kf2 g3+ 76. Ke3 Bd4+ 77. Kf4 Qg4#) (72. Qxf5 Qc1+ 73. Kf2 Qd2+ 74. Kg1 Qe3+ 75. Qf2 Bh2+ 76. Kf1 Qc1+ 77. Ke2 Qb2+ 78. Ke3 Qd4+ 79. Ke2 Qb2+ 80. Kf1 Qc1+ 81. Ke2 Qb2+ $11) 72... Kh6 73. Qxf5 Qc1+ 74. Ke2 (74. Kf2 Qd2+ 75. Kg1 Qe1+ 76. Bf1 Qg3+ 77. Bg2 Qe1+ 78. Bf1 Qg3+ 79. Bg2 Qe1+ $11) 74... Qb2+ 75. Kf1 Qc1+ 76. Kf2 Qd2+ 77. Kg1 Qe3+ 78. Qf2 Bh2+ 79. Kf1 Qd3+ 80. Qe2 (80. Ke1 $2 Bg3 $19) 80... Qb1+ 81. Qe1 Qd3+ 82. Qe2 Qb1+ 83. Qe1 Qd3+ 84. Qe2) 72. Nf7+ $18 {[%emt 0:01:27]} (72. Nxb7 Qc1+ 73. Ke2 Qc2+ 74. Kf1 Qd1+ 75. Kf2 g3+ 76. Ke3 Bf4#) 72... Kh4 {[%emt 0:00:03] ( -> ...Qc1+)} 73. Qh6+ {[%emt 0:00:47]} (73. Nxd6 {leads to mate.} Qd3+ 74. Kf2 g3+ 75. Kg1 Qe3+ 76. Kh1 Qe1+) ({Weaker is} 73. Qxf5 Qc1+ 74. Ke2 Qb2+ 75. Kd1 Qd4+ 76. Ke2 Bf4 $15) 73... Qxh6 {[%emt 0:00:02]} 74. Nxh6 {[%emt 0:00:12][%cal Oh6f7]} f4 $2 {[%emt 0:00:48]} (74... Kg5 75. Nf7+ Kf6) 75. Nf7 {[%emt 0:00:21] Intending Nxe5 and mate.} Bb2 {[%emt 0:01:17] Wards off Nxe5} 76. Nxd6 {[%emt 0:00:13]} Kg3 {[%emt 0:00:10]} 77. Nxb7 {[%emt 0:00:10] White mates.} f3 {[%emt 0:00:12]} 78. Bh1 {[%emt 0:00:24]} Kh2 {[%emt 0:00:49] [#]} 79. Bxf3 $1 {[%emt 0:00:07] Quite a comeback for White.   Weighted Error Value: White=0.22 (precise) /Black=0.21 (precise)} 1-0

[Event "Oceania Zonal Open 2023"]
[Site "Melbourne"]
[Date "2023.01.26"]
[Round "6.9"]
[White "Lee, Lachlan"]
[Black "McGowan, Cameron"]
[Result "0-1"]
[ECO "A24"]
[WhiteElo "1910"]
[BlackElo "2175"]
[Annotator "TA"]
[PlyCount "74"]
[EventDate "2023.01.09"]
[EventType "swiss"]
[EventCountry "AUS"]
[SourceTitle "playchess.com"]
[Source "ChessBase"]
[SourceQuality "1"]
[TimeControl "5400+30"]

{[%evp 20,74,-2,-10,-5,-18,0,-14,0,-38,-48,-46,-27,-50,-29,-133,-132,-135,-140,-129,-83,-83,-79,-165,-172,-166,-181,-425,-423,-412,-412,-404,-400,-395,-395,-567,-560,-560,-546,-522,-418,-749,-747,-1220,-1210,-1115,-1104,-1347,-1020,-1339,-1330,-1296,-1306,-1262,-1256,-1355,-1327]} 1. c4 {[%emt 0:00:06]} Nf6 {[%emt 0:00:03]} 2. Nc3 {[%emt 0:00:10]} g6 {[%emt 0:00:02]} 3. g3 {[%emt 0:00:11]} Bg7 {[%emt 0:00:06]} 4. Bg2 {[%emt 0:00:05]} O-O {[%emt 0:00:07]} 5. Nf3 {[%emt 0:00:48]} d6 {[%emt 0:00:07]} 6. O-O {[%emt 0:00:06]} e5 {[%emt 0:00:35]} 7. d3 {[%emt 0:00:56]} Re8 {[%emt 0:00:51]} 8. Rb1 {[%emt 0:02:40]} a5 {[%emt 0:00:50]} 9. a3 {[%emt 0:00:15][%cal Ba2a3,Ba3b4,Bb4b5][%mdl 32]} c6 {[%emt 0:00:27]} 10. b4 {[%emt 0:02:28]} axb4 {[%emt 0:00:45]} 11. axb4 {[%emt 0:00:09]} d5 {[%emt 0:00:17] A24: English Opening vs King's Indian: Lines without ...Nc6.} 12. b5 {[%emt 0:01:03]} dxc4 {[%emt 0:14:00] [#]} (12... d4 $5 {[%cal Rd4c3]} 13. bxc6 bxc6 $11) 13. dxc4 $146 {[%emt 0:01:52]} ({Predecessor:} 13. bxc6 Nxc6 14. dxc4 Qa5 15. Nd5 Nxd5 16. cxd5 Nd4 17. Nxd4 exd4 18. e4 Ra7 19. Bb2 {1-0 Willim,M (2099)-Szilardfy,G (2123) Budapest FS04 Elo-A 2005 (11)}) 13... Qe7 {[%emt 0:01:18] The position is equal.} 14. Ne1 {[%emt 0:08:14]} Bf5 {[%emt 0:12:54]} 15. Rb2 {[%emt 0:04:39]} e4 {[%emt 0:03:53][%cal Be5e4,Be4e3][%mdl 32]} 16. bxc6 {[%emt 0:36:35]} bxc6 {[%emt 0:03:29]} 17. Bf4 {[%emt 0:18:11]} (17. Nc2 $1 $11) 17... Ng4 $36 {[%emt 0:02:21][%mdl 2048] Black has strong initiative.} 18. Rb3 {[%emt 0:01:40] [#]} e3 $1 {[%emt 0:11:37]} 19. f3 {[%emt 0:03:18]} Ne5 {[%emt 0:11:30] Black has more active pieces.} (19... Nf2 $142 20. Qd6 Qxd6 21. Bxd6 Nd7) 20. Bxe5 $17 {[%emt 0:05:26]} Qxe5 {[%emt 0:00:02]} 21. f4 {[%emt 0:00:24]} (21. Ne4 $17) 21... Qc5 {[%emt 0:04:19]} 22. Nd3 {[%emt 0:06:44]} Qxc4 {[%emt 0:01:39] ...Be6 would be deadly.} 23. Nb5 $2 {[%emt 0:02:26]} (23. Ne5 Bxe5 24. fxe5) 23... Ra1 $19 {[%emt 0:07:02]} 24. Nd6 {[%emt 0:00:36]} Rxd1 {[%emt 0:00:41]} 25. Nxc4 {[%emt 0:00:08]} Bxd3 {[%emt 0:01:49] This pair of bishops is nice.} 26. Rxd1 {[%emt 0:02:19]} Bxc4 {[%emt 0:00:31]} 27. Ra3 {[%emt 0:00:15]} (27. Rbd3 {keeps fighting.}) 27... Bxe2 {[%emt 0:02:02]} 28. Re1 {[%emt 0:00:16]} Bb5 {[%emt 0:00:28]} 29. Bf3 {[%emt 0:00:58]} e2 {[%emt 0:04:47]} 30. Bxe2 {[%emt 0:01:41]} (30. Ra2 $142) 30... Bxe2 {[%emt 0:01:33][%cal Bb5e2,Be2f3,Bf3e4][%mdl 32] Black is clearly winning.} 31. Ra2 {[%emt 0:00:48]} Bd4+ {[%emt 0:00:05]} 32. Kg2 {[%emt 0:00:06] [#]} Bf3+ $1 {[%emt 0:00:16]} 33. Kf1 {[%emt 0:00:06]} (33. Kxf3 Rxe1) 33... Rxe1+ {[%emt 0:00:25]} 34. Kxe1 {[%emt 0:00:07]} c5 {[%emt 0:01:09]} 35. Ra4 {[%emt 0:00:16]} Nd7 {[%emt 0:00:19]} 36. Kd2 {[%emt 0:00:11]} Nf6 {[%emt 0:00:26]} 37. Ra3 {[%emt 0:00:27]} Be4 {[%emt 0:00:12] Weighted Error Value: White=0.86/Black=0.12 (very precise)} 0-1

[Event "Oceania Zonal Open 2023"]
[Site "Melbourne"]
[Date "2023.01.26"]
[Round "6.10"]
[White "Clarke, Matthew"]
[Black "Testolin, Ryder"]
[Result "0-1"]
[ECO "D43"]
[WhiteElo "2104"]
[BlackElo "2012"]
[Annotator "TA"]
[PlyCount "69"]
[EventDate "2023.01.09"]
[EventType "swiss"]
[EventCountry "AUS"]
[SourceTitle "playchess.com"]
[Source "ChessBase"]
[SourceQuality "1"]
[TimeControl "5400+30"]

{[%evp 24,69,30,19,31,10,25,0,46,28,56,51,58,15,41,0,31,16,62,54,62,57,60,0,0,-4,0,0,0,0,24,19,25,27,31,0,0,-271,-246,-298,-266,-419,-414,-864,-837,-29985,-29986,-29991]} 1. d4 {[%emt 0:00:03]} d5 {[%emt 0:00:09]} 2. c4 {[%emt 0:00:06]} e6 {[%emt 0:00:10]} 3. Nf3 {[%emt 0:00:15]} Nf6 {[%emt 0:00:11]} 4. Nc3 {[%emt 0:00:16]} c6 {[%emt 0:00:49]} 5. Bg5 {[%emt 0:00:50]} h6 {[%emt 0:01:19]} 6. Bxf6 {[%emt 0:00:42]} Qxf6 {[%emt 0:00:13]} 7. e3 {[%emt 0:00:40]} Nd7 {[%emt 0:01:00]} 8. Bd3 {[%emt 0:01:59]} dxc4 {[%emt 0:00:58]} 9. Bxc4 {[%emt 0:00:09]} g6 {[%emt 0:01:30]} 10. O-O {[%emt 0:00:57]} Bg7 {[%emt 0:00:22]} 11. e4 {[%emt 0:02:31]} e5 {[%emt 0:00:52]} 12. d5 {[%emt 0:02:40]} Nb6 {[%emt 0:02:00] 12...0-0 is vanishing.} 13. Bb3 {[%emt 0:01:36]} O-O {[%emt 0:01:49] D43: Semi-Slav: 5 Bg5 h6.} 14. dxc6 {[%emt 0:10:22]} bxc6 {[%emt 0:07:46]} 15. Qe2 {[%emt 0:13:08] [#]} Kh7 $146 {[%emt 0:26:20]} (15... Bg4 $11) ({Predecessor:} 15... Bg4 16. Rac1 Rfd8 17. Nd1 a5 18. a4 Rd4 19. Ne3 Bxf3 20. Qxf3 Qxf3 21. gxf3 Rb4 {½-½ Piceu,T (2361)-Van Haastert,E (2446) BEL-chT 1718 2017 (9.5)}) 16. Na4 {[%emt 0:14:41]} Rb8 {[%emt 0:01:47]} 17. Nc5 {[%emt 0:04:20]} a5 {[%emt 0:06:51]} 18. Ne1 {[%emt 0:14:24]} Qe7 {[%emt 0:02:34]} 19. Ned3 {[%emt 0:03:32]} f5 {[%emt 0:01:00]} 20. f3 {[%emt 0:04:49]} f4 {[%emt 0:01:12]} (20... a4 $11 21. Bc2 (21. Bxa4 Nxa4 22. Nxa4 Ba6 $11) 21... Nc4) 21. Rac1 $14 {[%emt 0:03:15]} Rf6 {[%emt 0:06:33]} 22. Kh1 {[%emt 0:03:41]} g5 {[%emt 0:01:51]} 23. Bc4 {[%emt 0:01:44]} ({Better is} 23. Rfd1 $14) 23... Nxc4 $11 {[%emt 0:02:42]} 24. Rxc4 {[%emt 0:00:07]} Rg6 {[%emt 0:00:58]} 25. g4 {[%emt 0:10:57]} fxg3 {[%emt 0:01:42]} 26. hxg3 {[%emt 0:00:06]} g4 {[%emt 0:04:16] [#] ...gxf3 is the strong threat.} 27. f4 {[%emt 0:03:47]} exf4 {[%emt 0:00:09]} 28. Rxf4 {[%emt 0:00:32]} h5 {[%emt 0:03:25][%cal Bh6h5,Bh5h4,Bh4g3,Bg3f2][%mdl 32]} 29. Qf2 {[%emt 0:02:02][%cal Oe4e5]} (29. e5 {feels hotter.} h4 30. Qe4 hxg3 31. Kg1) 29... h4 {[%emt 0:01:34]} 30. Rf7 $2 {[%emt 0:00:48][%mdl 8192]} (30. gxh4 $11 {and White stays safe.} Be6 31. Rc2) 30... hxg3 $1 $19 {[%emt 0:00:57]} 31. Rxe7 {[%emt 0:00:17]} ({Wrong is} 31. Qh2+ $2 gxh2 32. Rxe7 g3 $19) 31... gxf2 {[%emt 0:00:08]} 32. Kg2 {[%emt 0:00:30]} (32. Nxf2 {is the only way for White.} Rxb2 33. Nfd3 Rxa2 34. e5) 32... g3 {[%emt 0:00:19][%cal Oc8h3] [#] ( -> ...Bh3+!)} 33. Nd7 {[%emt 0:00:21]} (33. Rc1 $142 Kg8 34. b3) 33... Rb7 {[%emt 0:06:16]} 34. N3c5 {[%emt 0:00:18]} Rxb2 {[%emt 0:00:39]} 35. Rc1 {[%emt 0:00:49] Weighted Error Value: White=0.99/Black=0.10 (very precise)} 0-1